bitfinex/quotes_SOLUSD_20241226
["timestamp","ask_amount","ask_price","bid_price","bid_amount"]
[1735229304653,20.0,189.24,189.13,6.3976]
[1735229306773,20.0,189.2,189.13,6.3976]
[1735229307561,7.06373208,189.28,189.13,6.3976]
[1735229307562,20.0,189.25,189.13,6.3976]
[1735229308175,23.776884,189.27,189.13,6.3976]
[1735229308775,0.12549,189.26,189.13,6.3976]
[1735229309073,23.776884,189.25,189.13,6.3976]
[1735229309588,20.0,189.22,189.13,6.3976]
[1735229309761,23.776884,189.21,189.13,6.3976]
[1735229309968,20.0,189.18,189.13,6.3976]
[1735229311882,20.0,189.18,189.12,1.5119]
[1735229312672,5.69001532,189.25,189.12,1.5119]
[1735229312873,32.117115,189.33,189.13,6.52309]
[1735229313058,7.13622882,189.31,189.13,31.19432364]
[1735229313385,7.13622882,189.31,189.15,0.12549]
[1735229313386,5.71696063,189.3,189.15,0.12549]
[1735229313588,5.71696063,189.3,189.16,1.5119]
[1735229314176,5.71696063,189.3,189.17,6.3976]
[1735229314682,20.0,189.27,189.17,6.3976]
[1735229319972,20.0,189.24,189.17,6.3976]
[1735229320759,20.0,189.25,189.17,6.3976]
[1735229321060,23.776884,189.25,189.17,6.3976]
[1735229321287,20.0,189.22,189.17,6.3976]
[1735229322368,20.0,189.27,189.17,6.3976]
[1735229322779,32.117115,189.33,189.17,6.3976]
[1735229322982,5.71696063,189.3,189.17,6.3976]
[1735229323183,29.49384463,189.3,189.17,6.3976]
[1735229324083,23.902374,189.29,189.17,6.3976]
[1735229324282,20.0,189.26,189.17,6.3976]
[1735229324467,20.0,189.22,189.17,6.3976]
[1735229324893,20.0,189.18,189.17,6.3976]
[1735229327775,4.12872115,189.29,189.17,6.3976]
[1735229327968,3.97405923,189.3,189.17,6.3976]
[1735229328682,23.776884,189.3,189.17,6.3976]
[1735229329012,12.85318945,189.31,189.17,6.3976]
[1735229329899,20.0,189.28,189.18,3.87235304]
[1735229330595,20.0,189.28,189.17,6.3976]
[1735229330802,12.85318945,189.31,189.19,1.6448]
[1735229331099,5.71696063,189.31,189.2,3.87303579]
[1735229331600,5.71696063,189.31,189.19,1.6448]
[1735229331774,5.71696063,189.31,189.2,6.5386]
[1735229332381,5.71696063,189.31,189.21,3.87242368]
[1735229332698,5.71696063,189.31,189.22,0.12549]
[1735229332904,20.0,189.28,189.21,3.87242368]
[1735229333081,20.0,189.28,189.2,6.5386]
[1735229333888,20.0,189.33,189.22,1.5372]
[1735229334093,20.0,189.33,189.23,6.4946]
[1735229335696,20.0,189.33,189.23,7.28701558]
[1735229336001,20.0,189.33,189.23,6.4946]
[1735229337887,23.776884,189.35,189.23,6.4946]
[1735229340016,20.0,189.32,189.23,6.4946]
[1735229344314,23.776884,189.31,189.23,6.4946]
[1735229344589,20.0,189.28,189.23,6.4946]
[1735229345010,0.04974431,189.33,189.23,6.4946]
[1735229345212,6.62083452,189.39,189.23,6.4946]
[1735229345423,23.902374,189.38,189.23,6.4946]
[1735229346090,0.12549,189.37,189.23,6.4946]
[1735229346285,20.0,189.35,189.23,6.4946]
[1735229347101,20.0,189.31,189.23,6.4946]
[1735229349408,20.0,189.35,189.23,6.4946]
[1735229350118,23.902374,189.37,189.23,6.4946]
[1735229351224,20.0,189.34,189.23,6.4946]
[1735229353335,0.12549,189.33,189.23,6.4946]
[1735229353640,23.902374,189.33,189.23,6.4946]
[1735229353844,20.0,189.3,189.23,6.4946]
[1735229354737,5.17883889,189.4,189.23,6.4946]
[1735229354949,11.79967341,189.4,189.24,1.5555]
[1735229355321,11.79967341,189.4,189.25,6.5973]
[1735229355649,23.902374,189.39,189.26,1.5555]
[1735229356951,20.0,189.36,189.26,1.5555]
[1735229359144,23.902374,189.35,189.26,1.5555]
[1735229359545,20.0,189.32,189.26,1.5555]
[1735229360563,20.0,189.37,189.26,1.5555]
[1735229361064,6.62083452,189.4,189.26,1.5555]
[1735229361624,23.902374,189.39,189.26,1.5555]
[1735229362790,20.0,189.36,189.26,1.5555]
[1735229364482,20.0,189.41,189.28,1.6172]
[1735229364687,6.72939276,189.42,189.29,6.6612]
[1735229364979,6.72939276,189.41,189.29,6.6612]
[1735229365349,6.72939276,189.41,189.31,6.6612]
[1735229365549,6.62083452,189.45,189.33,23.902374]
[1735229365753,6.62083452,189.45,189.34,8.2784]
[1735229365754,6.72939276,189.44,189.34,8.2784]
[1735229365963,23.902374,189.42,189.34,8.2784]
[1735229366166,6.62083452,189.41,189.34,8.2784]
[1735229366385,13.35022728,189.41,189.34,8.2784]
[1735229367061,20.0,189.38,189.34,8.2784]
[1735229369486,20.0,189.36,189.34,8.2784]
[1735229369771,20.0,189.34,189.19,24.61930794]
[1735229369943,20.0,189.32,189.18,24.61930794]
[1735229370148,20.0,189.32,189.18,0.79250415]
[1735229370460,20.0,189.32,189.19,10.21905116]
[1735229370864,6.85488276,189.32,189.19,10.21905116]
[1735229371052,20.0,189.28,189.19,10.21905116]
[1735229371373,20.0,189.28,189.17,23.902374]
[1735229371772,20.0,189.28,189.12,24.61930794]
[1735229371972,20.0,189.24,189.11,24.61930794]
[1735229372180,20.0,189.24,189.1,25.41196882]
[1735229372481,20.0,189.24,189.11,3.9428438]
[1735229372775,20.0,189.24,189.12,7.6117]
[1735229373154,20.0,189.2,189.12,7.6117]
[1735229373358,20.0,189.22,189.12,7.6117]
[1735229376179,20.0,189.22,189.13,24.61930794]
[1735229376377,20.0,189.25,189.16,24.61930794]
[1735229376570,14.73446195,189.36,189.18,24.61930794]
[1735229376956,6.36154989,189.35,189.19,48.52168194]
[1735229377176,36.62083452,189.34,189.17,7.6117]
[1735229377365,0.12549,189.32,189.17,7.6117]
[1735229377578,0.12549,189.3,189.17,7.6117]
[1735229377776,20.0,189.28,189.17,7.6117]
[1735229378977,23.902374,189.27,189.17,7.6117]
[1735229379179,20.0,189.24,189.17,7.6117]
[1735229380470,20.0,189.24,189.1,8.2002]
[1735229380983,20.0,189.24,189.11,3.94241032]
[1735229381685,20.0,189.24,189.1,32.81950794]
[1735229382784,20.0,189.24,189.11,48.52168194]
[1735229382961,20.0,189.24,189.1,8.2002]
[1735229382962,20.0,189.25,189.13,24.74479794]
[1735229383990,20.0,189.25,189.13,23.902374]
[1735229384491,20.0,189.25,189.13,24.74479794]
[1735229384791,20.0,189.25,189.14,23.776884]
[1735229385907,20.0,189.25,189.08,13.2213]
[1735229385908,3.81815831,189.34,189.17,48.52168194]
[1735229386080,3.17219579,189.31,189.17,48.52168194]
[1735229386469,3.17219579,189.31,189.19,23.902374]
[1735229388282,20.0,189.29,189.19,23.902374]
[1735229391388,20.0,189.29,189.18,0.79263522]
[1735229391695,20.0,189.29,189.16,8.2002]
[1735229392070,20.0,189.29,189.17,23.902374]
[1735229392274,20.0,189.29,189.19,23.902374]
[1735229392773,3.17219579,189.31,189.2,25.4118148]
[1735229393078,3.17219579,189.31,189.2,0.79250686]
[1735229393779,20.0,189.29,189.17,25.411785]
[1735229393984,20.0,189.29,189.16,32.81950794]
[1735229394598,20.0,189.29,189.17,48.52168194]
[1735229394799,20.0,189.29,189.17,27.84078415]
[1735229395182,20.0,189.29,189.18,24.61930794]
[1735229395698,20.0,189.29,189.17,49.31435483]
[1735229395922,20.0,189.29,189.17,24.69504689]
[1735229396397,20.0,189.29,189.19,23.902374]
[1735229396985,117.77883889,189.38,189.19,23.902374]
[1735229396986,5.17883889,189.38,189.28,15.39425338]
[1735229397185,8.20746195,189.42,189.29,0.79213806]
[1735229397495,8.20746195,189.42,189.31,23.902374]
[1735229397676,8.20746195,189.42,189.32,6.4433]
[1735229398077,23.902374,189.49,189.32,6.4433]
[1735229398706,14.97090084,189.5,189.34,1.6324]
[1735229399115,20.0,189.46,189.34,1.6324]
[1735229399281,6.76343889,189.5,189.35,24.6942937]
[1735229399606,1.5846,189.5,189.35,24.6942937]
[1735229400002,11.7950234,189.51,189.35,24.6942937]
[1735229400185,6.76343889,189.55,189.37,23.902374]
[1735229400385,30.0,189.54,189.34,1.6324]
[1735229400586,23.902374,189.53,189.35,24.59131166]
[1735229400806,10.78856229,189.54,189.36,23.902374]
[1735229401490,20.0,189.47,189.34,1.6324]
[1735229401698,20.0,189.47,189.36,23.902374]
[1735229402296,20.0,189.51,189.37,23.776884]
[1735229402504,10.78856229,189.54,189.39,23.776884]
[1735229402807,6.1853,189.56,189.41,6.4433]
[1735229403430,23.902374,189.55,189.41,6.4433]
[1735229405209,20.0,189.52,189.41,6.4433]
[1735229406613,20.0,189.53,189.43,1.6324]
[1735229406785,10.78856229,189.59,189.43,1.6324]
[1735229406991,23.902374,189.58,189.43,1.6324]
[1735229407307,10.78856229,189.59,189.43,1.6324]
[1735229407790,23.902374,189.58,189.43,1.6324]
[1735229408109,20.0,189.55,189.43,1.6324]
[1735229409295,20.0,189.56,189.44,48.49368566]
[1735229409495,20.0,189.56,189.44,49.2851526]
[1735229409906,20.0,189.56,189.46,23.902374]
[1735229410095,20.0,189.58,189.46,23.902374]
[1735229410295,82.6,189.61,189.46,23.902374]
[1735229411014,23.902374,189.6,189.44,48.36819566]
[1735229411195,23.902374,189.6,189.43,1.6324]
[1735229411396,88.2097234,189.61,189.44,24.59131166]
[1735229411797,20.0,189.58,189.46,6.5127]
[1735229412603,20.0,189.58,189.49,0.12549]
[1735229412805,5.17883889,189.64,189.52,6.5127]
[1735229413001,13.30303889,189.69,189.52,6.5127]
[1735229413206,23.902374,189.68,189.52,6.5127]
[1735229413609,13.30303889,189.69,189.52,6.5127]
[1735229414018,20.0,189.66,189.52,6.5127]
[1735229414205,5.17883889,189.69,189.54,23.902374]
[1735229415313,5.17883889,189.69,189.54,48.49368566]
[1735229415599,10.79312054,189.73,189.56,23.902374]
[1735229416522,23.902374,189.72,189.56,23.902374]
[1735229417118,23.902374,189.72,189.56,48.49368566]
[1735229417317,10.79312054,189.73,189.59,1.5755]
[1735229417525,5.61428165,189.73,189.59,1.5755]
[1735229418517,20.0,189.7,189.59,1.5755]
[1735229420938,20.0,189.7,189.59,26.16681166]
[1735229421140,5.61428165,189.73,189.59,26.16681166]
[1735229421307,5.61428165,189.73,189.59,1.5755]
[1735229422745,20.0,189.7,189.59,1.5755]
[1735229425540,5.61428165,189.73,189.6,6.1958]
[1735229425717,30.0,189.78,189.63,15.32723783]
[1735229425910,5.61428165,189.79,189.63,15.32723783]
[1735229426229,30.0,189.86,189.68,15.32723783]
[1735229426534,30.0,189.86,189.7,15.32723783]
[1735229426752,23.902374,189.85,189.69,15.32723783]
[1735229426914,23.902374,189.85,189.68,39.22961183]
[1735229427113,30.0,189.86,189.68,39.22961183]
[1735229427337,30.0,189.88,189.7,39.22961183]
[1735229427553,32.8055167,189.9,189.71,6.1958]
[1735229427721,30.0,189.87,189.71,6.1958]
[1735229428042,30.0,189.89,189.72,16.86433783]
[1735229428548,23.902374,189.88,189.72,16.86433783]
[1735229428740,8.41979835,189.9,189.73,23.902374]
[1735229428942,2.09165552,189.92,189.73,39.22961183]
[1735229429246,5.61428165,189.9,189.77,6.1958]
[1735229429448,23.902374,189.87,189.77,6.1958]
[1735229429626,23.902374,189.85,189.77,6.1958]
[1735229429835,23.902374,189.83,189.77,6.1958]
[1735229430240,35.61428165,189.84,189.77,6.1958]
[1735229430241,5.61428165,189.84,189.77,6.1958]
[1735229430423,32.8055167,189.88,189.77,6.1958]
[1735229430629,20.0,189.84,189.77,6.1958]
[1735229432862,20.0,189.82,189.77,6.1958]
[1735229436139,30.0,189.92,189.77,6.1958]
[1735229437138,23.902374,189.91,189.77,6.1958]
[1735229437353,35.59248741,189.94,189.78,1.5371]
[1735229438959,20.0,189.91,189.78,1.5371]
[1735229439257,20.0,189.9,189.78,1.5371]
[1735229439847,20.0,189.91,189.81,6.1958]
[1735229440051,30.0,189.97,189.81,21.52303783]
[1735229440357,2.8055167,189.99,189.82,15.32723783]
[1735229440741,2.8055167,189.99,189.83,1.5371]
[1735229441044,30.0,190.03,189.87,15.32723783]
[1735229441251,30.0,190.03,189.88,7.7329]
[1735229441968,30.0,190.03,189.88,23.06013783]
[1735229442139,30.0,190.05,189.88,7.7329]
[1735229442339,20.0,190.0,189.88,7.7329]
[1735229442749,20.0,189.96,189.88,7.7329]
[1735229443144,20.0,190.02,189.88,7.7329]
[1735229448857,20.0,189.98,189.88,7.7329]
[1735229449266,20.0,189.98,189.88,23.06013783]
[1735229449561,20.0,190.01,189.89,23.902374]
[1735229449768,20.0,190.02,189.9,6.1958]
[1735229450289,20.0,190.03,189.9,6.1958]
[1735229450450,20.0,190.02,189.9,6.1958]
[1735229451141,20.0,190.02,189.91,1.5053]
[1735229451352,20.0,190.03,189.91,25.407674]
[1735229451551,20.0,190.02,189.91,1.5053]
[1735229451947,7.0182147,190.06,189.91,1.5053]
[1735229452567,7.0182147,190.06,189.91,25.282184]
[1735229453267,20.0,190.03,189.91,25.282184]
[1735229453442,20.0,190.03,189.91,1.5053]
[1735229455872,7.03604714,190.12,189.97,8.2344]
[1735229457169,20.0,190.08,189.97,8.2344]
[1735229457374,20.0,190.07,189.97,8.2344]
[1735229457555,20.0,190.03,189.97,8.2344]
[1735229458060,20.0,189.99,189.86,15.32723783]
[1735229458454,20.0,189.99,189.87,15.32723783]
[1735229458975,20.0,189.99,189.86,15.32723783]
[1735229459466,20.0,190.02,189.87,15.32723783]
[1735229459670,20.0,190.02,189.88,15.32723783]
[1735229459869,20.0,190.02,189.87,15.32723783]
[1735229460049,20.0,189.99,189.83,15.32723783]
[1735229460245,20.0,189.97,189.82,15.32723783]
[1735229460469,20.0,189.93,189.79,0.78984364]
[1735229460669,23.776884,189.96,189.75,0.79003356]
[1735229460670,20.0,189.88,189.75,0.79003356]
[1735229460879,20.0,189.88,189.74,16.93493783]
[1735229461079,20.0,189.88,189.77,21.95393783]
[1735229461377,20.0,189.89,189.78,15.32723783]
[1735229461572,20.0,189.89,189.77,6.6267]
[1735229462356,3.05887409,189.93,189.77,6.6267]
[1735229462357,20.0,189.87,189.77,6.6267]
[1735229462560,20.0,189.87,189.81,1.6077]
[1735229462760,30.0,189.99,189.84,24.48013051]
[1735229463175,30.0,189.99,189.83,31.10683051]
[1735229463752,30.0,189.97,189.83,6.6267]
[1735229463965,20.0,189.93,189.83,6.6267]
[1735229464476,20.0,189.93,189.83,31.10683051]
[1735229464661,20.0,189.93,189.83,6.6267]
[1735229467378,20.0,189.89,189.81,1.6077]
[1735229468773,20.0,189.88,189.79,6.6267]
[1735229469277,20.0,189.84,189.75,8.018]
[1735229469580,23.902374,189.87,189.75,8.018]
[1735229469881,20.0,189.84,189.75,8.018]
[1735229470063,20.0,189.83,189.71,6.3983]
[1735229470265,20.0,189.83,189.71,31.66897227]
[1735229470571,20.0,189.83,189.72,24.48013051]
[1735229470771,20.0,189.83,189.72,34.6390692]
[1735229471259,20.0,189.83,189.73,10.15893869]
[1735229471964,20.0,189.87,189.74,3.90728411]
[1735229472165,20.0,189.87,189.74,28.38741462]
[1735229472385,35.94916785,189.93,189.77,24.48013051]
[1735229472561,42.2134495,189.93,189.77,24.48013051]
[1735229472875,23.902374,189.9,189.75,10.15893869]
[1735229473077,6.26428165,189.9,189.74,24.48013051]
[1735229473282,6.26428165,189.9,189.75,24.48013051]
[1735229473670,20.0,189.87,189.75,24.48013051]
[1735229475189,20.0,189.86,189.75,24.48013051]
[1735229475782,20.0,189.86,189.76,3.91354913]
[1735229476159,20.0,189.87,189.75,24.48013051]
[1735229476484,20.0,189.86,189.73,24.48013051]
[1735229476674,20.0,189.86,189.74,24.48013051]
[1735229477379,20.0,189.87,189.75,28.3955431]
[1735229477583,20.0,189.87,189.76,24.48013051]
[1735229477989,20.0,189.87,189.75,24.48013051]
[1735229478168,20.0,189.87,189.76,3.91686225]
[1735229478578,20.0,189.87,189.75,24.48013051]
[1735229479075,6.26428165,189.9,189.78,24.48013051]
[1735229479273,1.5572,189.92,189.79,26.03113051]
[1735229479479,6.26428165,189.95,189.81,31.01333051]
[1735229479981,6.26428165,189.95,189.81,6.5332]
[1735229480487,6.26428165,189.95,189.82,3.91851381]
[1735229481186,6.26428165,189.95,189.81,6.5332]
[1735229481768,20.0,189.92,189.81,6.5332]
[1735229482283,20.0,189.92,189.82,24.48013051]
[1735229482478,20.0,189.93,189.82,24.48013051]
[1735229483070,20.0,189.93,189.81,6.5332]
[1735229483382,6.2128,189.96,189.83,24.48013051]
[1735229483585,1.5196,189.97,189.85,24.48013051]
[1735229483976,6.26428165,190.0,189.86,24.48013051]
[1735229484294,6.26428165,190.0,189.87,15.27996957]
[1735229485472,1.581,190.02,189.89,16.85076957]
[1735229485796,1.581,190.02,189.9,15.27996957]
[1735229485971,1.581,190.02,189.89,1.5708]
[1735229486373,23.902374,189.97,189.86,6.2734039]
[1735229486573,0.12549,189.96,189.86,6.2734039]
[1735229486774,20.12549,189.96,189.81,23.38396957]
[1735229487086,20.12549,189.96,189.82,15.27996957]
[1735229487293,20.12549,189.96,189.82,19.20147932]
[1735229487486,20.0,189.96,189.83,15.27996957]
[1735229487682,20.0,189.96,189.84,15.27996957]
[1735229487883,1.27151744,189.97,189.84,15.27996957]
[1735229488081,20.0,189.99,189.85,15.27996957]
[1735229488270,20.0,189.99,189.88,24.45103925]
[1735229489094,2.85251744,190.02,189.87,24.45103925]
[1735229489095,20.0,190.01,189.87,24.45103925]
[1735229489295,2.85251744,190.02,189.89,24.45103925]
[1735229489596,20.0,190.01,189.89,24.45103925]
[1735229490179,2.85251744,190.02,189.88,25.24075181]
[1735229490669,2.85251744,190.02,189.9,24.45103925]
[1735229490872,1.581,190.02,189.91,24.45103925]
[1735229491998,1.581,190.02,189.9,24.45103925]
[1735229492195,1.581,190.02,189.87,0.78954253]
[1735229492494,1.581,190.02,189.86,24.45103925]
[1735229493177,20.0,189.98,189.84,24.45103925]
[1735229493527,20.0,189.98,189.85,25.24083996]
[1735229493804,20.0,189.98,189.86,24.45103925]
[1735229493976,20.0,189.99,189.87,24.45103925]
[1735229494300,20.0,189.99,189.87,0.78974394]
[1735229494677,20.0,189.98,189.86,24.45103925]
[1735229494880,20.0,189.98,189.84,25.24077915]
[1735229495076,20.0,189.98,189.84,24.45103925]
[1735229495598,20.0,189.98,189.85,24.45103925]
[1735229495799,20.0,189.98,189.83,24.45103925]
[1735229496780,6.0168,189.97,189.83,24.45103925]
[1735229498196,20.0,189.94,189.82,24.45103925]
[1735229498388,20.0,189.94,189.83,24.45103925]
[1735229498792,20.0,189.94,189.82,24.45103925]
[1735229499185,20.0,189.94,189.81,8.89394395]
[1735229499504,21.5166,189.93,189.81,8.104]
[1735229500001,21.5166,189.93,189.81,1.5708]
[1735229500197,21.5166,189.93,189.82,25.24102452]
[1735229502205,21.5166,189.93,189.81,1.5708]
[1735229502504,21.5166,189.93,189.81,26.02183925]
[1735229502802,21.5166,189.93,189.82,24.45103925]
[1735229503306,21.5166,189.93,189.81,26.02183925]
[1735229503683,21.5166,189.93,189.82,24.45103925]
[1735229503881,21.5166,189.93,189.82,28.38153574]
[1735229504589,21.5166,189.93,189.83,3.93049649]
[1735229505002,21.5166,189.93,189.81,26.81178379]
[1735229505501,21.5166,189.93,189.82,3.93115723]
[1735229506017,21.5166,189.93,189.8,24.45103925]
[1735229506388,21.5166,189.93,189.81,3.93156041]
[1735229506589,21.5166,189.93,189.82,24.45103925]
[1735229507179,21.5166,189.93,189.83,3.93142244]
[1735229507706,21.5166,189.93,189.83,28.38246169]
[1735229508010,21.5166,189.93,189.84,24.45103925]
[1735229508194,1.5166,189.93,189.84,24.45103925]
[1735229510107,1.5166,189.93,189.82,24.45103925]
[1735229510294,1.5166,189.93,189.82,15.28751187]
[1735229511009,1.5166,189.93,189.83,15.28751187]
[1735229511396,1.5166,189.93,189.8,6.29004702]
[1735229511600,1.5166,189.93,189.8,21.57755889]
[1735229511804,1.5166,189.93,189.81,3.93146531]
[1735229512105,22.115762,189.97,189.82,0.91546289]
[1735229512286,20.0,189.97,189.86,15.28751187]
[1735229512611,20.0,189.97,189.85,15.28751187]
[1735229512810,20.0,189.97,189.84,15.28751187]
[1735229513910,6.4393,189.95,189.82,0.91546289]
[1735229514095,20.0,189.92,189.79,15.28751187]
[1735229514292,20.0,189.92,189.8,15.28751187]
[1735229514493,20.0,189.92,189.81,0.78997217]
[1735229514713,20.0,189.92,189.82,3.93274412]
[1735229515207,20.0,189.92,189.81,0.78997217]
[1735229516409,20.0,189.92,189.82,3.93470931]
[1735229516915,20.0,189.92,189.81,0.78997217]
[1735229517712,20.0,189.92,189.82,3.93578711]
[1735229518313,20.0,189.92,189.81,0.78997217]
[1735229518828,20.0,189.92,189.79,21.58477125]
[1735229519110,20.0,189.92,189.8,3.93674738]
[1735229519303,6.4393,189.89,189.8,3.93674738]
[1735229519506,20.0,189.85,189.77,6.29725938]
[1735229519695,20.0,189.83,189.77,6.29725938]
[1735229520302,20.0,189.83,189.72,10.23595816]
[1735229520812,20.0,189.83,189.72,25.52347003]
[1735229521016,20.0,189.86,189.73,25.52347003]
[1735229521205,20.0,189.86,189.73,10.23595816]
[1735229521418,19.5,189.86,189.73,10.23595816]
[1735229521595,19.5,189.86,189.74,10.23595816]
[1735229521991,19.5,189.86,189.75,3.93869878]
[1735229522405,43.276884,189.86,189.75,3.93869878]
[1735229522612,23.776884,189.85,189.76,3.93869878]
[1735229523103,23.776884,189.85,189.77,3.93869878]
[1735229523414,19.5,189.86,189.77,3.93869878]
[1735229523601,1.5351,189.87,189.79,15.28751187]
[1735229523995,1.5351,189.87,189.8,3.93869878]
[1735229524395,1.5351,189.87,189.79,15.28751187]
[1735229524396,1.5351,189.87,189.81,3.93869878]
[1735229524899,6.4393,189.89,189.81,19.22621065]
[1735229525105,6.4393,189.89,189.82,3.93869878]
[1735229525723,6.4393,189.89,189.83,3.93869878]
[1735229526019,1.5351,189.92,189.83,3.93869878]
[1735229526397,1.5351,189.92,189.81,21.58477125]
[1735229526816,20.0,189.91,189.82,3.93842777]
[1735229527505,20.0,189.91,189.83,3.93842777]
[1735229528015,20.0,189.91,189.81,15.28751187]
[1735229528217,1.5351,189.92,189.84,3.93858084]
[1735229528521,2.72832165,189.97,189.85,15.28751187]
[1735229528821,2.72832165,189.97,189.85,19.22609271]
[1735229529116,2.72832165,189.97,189.87,15.28751187]
[1735229529308,1.507,189.97,189.88,19.22609271]
[1735229529918,1.507,189.97,189.88,3.93858084]
[1735229530106,1.507,189.97,189.89,3.93858084]
[1735229530508,1.507,189.97,189.87,15.28751187]
[1735229530712,1.507,189.97,189.88,15.28751187]
[1735229531202,1.507,189.97,189.87,15.28751187]
[1735229531706,1.507,189.97,189.88,3.93472195]
[1735229531901,20.0,189.96,189.88,3.93472195]
[1735229532104,20.0,189.96,189.86,15.28751187]
[1735229532421,1.507,189.97,189.87,15.28751187]
[1735229532621,1.507,189.97,189.87,19.22209118]
[1735229533128,1.507,189.97,189.88,3.93457931]
[1735229533707,1.507,189.97,189.89,3.93457931]
[1735229533908,6.3833,189.99,189.89,3.93457931]
[1735229534227,6.3833,189.99,189.87,21.58924121]
[1735229534728,6.3833,189.99,189.88,3.93580438]
[1735229535227,6.3833,189.99,189.89,3.93580438]
[1735229535931,6.3833,189.99,189.87,21.58924121]
[1735229536428,6.3833,189.99,189.88,3.93593334]
[1735229536931,6.3833,189.99,189.86,7.80662934]
[1735229537426,6.3833,189.99,189.87,3.93641325]
[1735229538037,6.3833,189.99,189.88,3.93641325]
[1735229538519,23.776884,189.98,189.86,6.30172934]
[1735229539231,23.776884,189.98,189.87,3.93662623]
[1735229539608,20.0,189.96,189.87,19.2241381]
[1735229540004,6.3833,189.99,189.88,3.93662623]
[1735229540622,6.3833,189.99,189.89,3.93662623]
[1735229541004,6.3833,189.99,189.9,3.93662623]
[1735229541418,1.507,190.02,189.9,21.51860861]
[1735229541631,20.0,190.01,189.9,21.51860861]
[1735229541939,20.0,190.01,189.91,3.93662623]
[1735229542311,20.0,190.01,189.92,3.93662623]
[1735229543328,6.3833,190.04,189.91,15.41300187]
[1735229544006,6.3833,190.04,189.91,6.42721934]
[1735229544527,6.3833,190.04,189.92,3.93047767]
[1735229544924,6.3833,190.04,189.93,3.93047767]
[1735229545546,6.3833,190.04,189.92,3.93047767]
[1735229546339,6.3833,190.04,189.91,15.41300187]
[1735229546839,6.3833,190.04,189.92,15.28751187]
[1735229547135,6.3833,190.04,189.92,3.9282569]
[1735229547516,6.3833,190.04,189.91,15.41300187]
[1735229548632,1.5697,190.06,189.92,3.926589]
[1735229548633,20.0,190.05,189.92,3.926589]
[1735229548839,20.0,190.05,189.92,20.00358171]
[1735229549138,20.0,190.05,189.92,16.07699271]
[1735229549434,20.0,190.05,189.93,6.71189]
[1735229549640,20.0,190.06,189.94,16.07696341]
[1735229550230,1.5697,190.11,189.94,16.07696341]
[1735229550231,20.0,190.09,189.94,16.07696341]
[1735229550743,3.639492,190.11,189.95,15.28751187]
[1735229551237,23.776884,190.1,189.95,15.28751187]
[1735229551739,23.776884,190.1,189.94,0.78945154]
[1735229551918,23.776884,190.1,189.95,15.28751187]
[1735229551919,18.7593724,190.1,189.95,15.28751187]
[1735229552119,3.639492,190.11,189.96,25.487874]
[1735229552316,1.5697,190.11,189.97,15.28751187]
[1735229552828,20.0,190.09,189.97,15.28751187]
[1735229554129,20.0,190.09,189.98,16.07675255]
[1735229554743,20.0,190.09,189.98,0.78924068]
[1735229554939,20.0,190.09,189.98,16.07675255]
[1735229557025,20.0,190.09,189.98,15.28751187]
[1735229557548,20.0,190.09,189.97,15.28751187]
[1735229557847,14.32640696,190.14,189.98,6.5965]
[1735229558032,14.32640696,190.14,189.98,21.88401187]
[1735229558440,14.32640696,190.14,189.99,15.28751187]
[1735229558652,6.24248741,190.14,190.01,15.41300187]
[1735229559143,6.24248741,190.14,189.99,15.28751187]
[1735229559648,6.24248741,190.14,190.01,15.28751187]
[1735229560237,6.4965162,190.17,190.02,15.28751187]
[1735229560553,6.4965162,190.17,190.0,16.20220536]
[1735229560722,6.4965162,190.17,190.01,15.28751187]
[1735229561752,20.0,190.14,190.01,15.28751187]
[1735229562651,20.0,190.14,190.02,15.28751187]